Cogmind - Beta 13 @@@ ROGUE MODE // 2024.05.08 @ 19:41:38 Player: Jason Result: Destroyed by D-53 Grenadier with Mini Grenade Launcher Performance ------------- Evolutions (0) 0 Regions Visited (4) 800 Robots Destroyed (23) 115 Value Destroyed (593) 593 Prototype IDs (23) 460 Alien Tech Used (0) 0 Bonus (147) 147 TOTAL SCORE: 2115 Bonus ------- Follower Combat Kills 164 Friendly Fire -17 Cogmind --------- Core Integrity 0/250 Matter 300/300 Energy 170/170 System Corruption 0% Temperature Cool (0) Movement Core (450) Ox8 Location -9/Mines Parts ------- > --- POWER (1) -------- Makeshift Power Source > --- PROPULSION (2) --- (None) > --- UTILITY (2) ------ Large Storage Unit Signal Interpreter > --- WEAPON (2) ------- Makeshift Spear > --- INVENTORY (15) --- Ion Engine Light Ion Engine Improved Heat Sink Structural Scanner Visual Processing Unit Sensor Array Signal Interpreter Seismic Detector Makeshift Cloaking Device Trap Reconfigurator Sensor Drone Bay Light Assault Rifle Rocket Launcher Datajack Peak State ------------ > --- POWER ------------ Makeshift Power Source > --- PROPULSION ------- Aluminum Leg Aluminum Leg > --- UTILITY ---------- Large Storage Unit Signal Interpreter > --- WEAPON ----------- Particle Gun Makeshift Spear > --- INVENTORY -------- Light Ion Engine Aluminum Leg Aluminum Leg Improved Heat Sink Structural Scanner Visual Processing Unit Sensor Array Signal Interpreter Seismic Detector Trap Reconfigurator Sensor Drone Bay Light Assault Rifle Autogun Rocket Launcher Datajack [Rating: 17] Favorites ----------- Power Ion Engine Engine Ion Engine Propulsion Aluminum Leg Leg Aluminum Leg Utility Large Storage Unit Device Structural Scanner Storage Large Storage Unit Processor Signal Interpreter Weapon Particle Gun Energy Gun Particle Gun Ballistic Gun Autogun Special Weapon Mining Laser Piercing Weapon Makeshift Spear Special Melee Weapon Datajack Build | -11 -10 -10 -10 -9 ------- Run | Yrd Mat Min Exi Min Slots Evolved . | . . . . . Power . | . . . . . Propulsion . | . . . . . Utility . | . . . . . Weapon . | . . . . . Parts Attached 33 | 7 12 5 6 3 Power 3 | 1 . 1 1 . Engine 3 | 1 . 1 1 . Core . | . . . . . Reactor . | . . . . . Propulsion 9 | 2 3 2 1 1 Treads . | . . . . . Leg 9 | 2 3 2 1 1 Wheel . | . . . . . Hover . | . . . . . Flight . | . . . . . Utility 5 | 2 3 . . . Device 2 | 1 1 . . . Storage 2 | 1 1 . . . Processor 1 | . 1 . . . Hackware . | . . . . . Protection . | . . . . . Artifact . | . . . . . Weapon 16 | 2 6 2 4 2 Energy Gun 3 | . 1 1 . 1 Energy Cannon . | . . . . . Ballistic Gun 8 | 2 3 1 1 1 Ballistic Cannon . | . . . . . Launcher . | . . . . . Special Weapon 2 | . 2 . . . Impact Weapon . | . . . . . Slashing Weapon . | . . . . . Piercing Weapon 1 | . . . 1 . Special Melee Weapon 2 | . . . 2 . Unidentified Prototypes . | . . . . . Parts Lost 8 | . . 3 . 5 Power 1 | . . 1 . . Propulsion 3 | . . . . 3 Utility . | . . . . . Weapon 4 | . . 2 . 2 Highest Loss Streak 4 | . . 3 . 4 To Critical Strikes . | . . . . . Average Slot Usage (%) 99 | . 100 98 100 97 Engine 13 | . 14 13 14 14 Leg 27 | . 28 28 28 25 Device 5 | . 13 . . . Storage 14 | . 14 14 14 14 Processor 8 | . . 14 14 14 Energy Gun 11 | . 10 13 11 11 Ballistic Gun 11 | . 15 12 7 2 Special Weapon 1 | . 2 1 . . Piercing Weapon 2 | . . . 6 14 Special Melee Weapon 1 | . . . 3 . Naked Turns . | . . . . . Heaviest Build 32 | 14 32 31 31 29 Greatest Support 20 | 20 20 20 20 20 Greatest Overweight (x) 2 | 1 1 1 1 2 Average Overweight (x) . | . . 1 1 1 Largest Inventory Capacity 15 | 8 15 15 15 15 Average Capacity 13 | 6 11 15 15 15 Most Carried 15 | 4 15 15 15 15 Average Carried 12 | 2 8 14 14 14 Final Capacity 15 | 8 15 15 15 15 Final Carried 15 | 4 14 15 15 14 Class Distribution -------------------- 100% | Mutant Dominant Class ---------------- Mutant | -10/Materials Mutant | -10/Mines Mutant | -10/Exiles Mutant | -9/Mines Resources | -11 -10 -10 -10 -9 ----------- Run | Yrd Mat Min Exi Min Matter Collected 775 | 249 271 148 88 19 Remotely . | . . . . . Salvage Created 905 | 26 446 216 168 49 Parts 61 | 3 35 8 12 3 Haulers Intercepted . | . . . . . Recyclers Shooed . | . . . . . Parts Field Recycled . | . . . . . Retrieved Matter . | . . . . . Parts Self-Destructed . | . . . . . Prevented . | . . . . . Kills | -11 -10 -10 -10 -9 ------- Run | Yrd Mat Min Exi Min Combat Hostiles Destroyed 20 | . 15 4 . 1 Guns 20 | . 15 4 . 1 Classes Destroyed 5 | 1 3 1 . . Tunneler 1 | 1 . . . . Recycler 1 | . . 1 . . Watcher 1 | . 1 . . . Swarmer 7 | . 6 1 . . Grunt 13 | . 9 3 . 1 Best Kill Streak 9 | 1 9 3 . 1 Combat Bots Only 8 | . 8 2 . 1 Max Kills in Single Turn 1 | 1 1 1 . 1 Gunslinging . | . . . . . Exploded . | . . . . . Melee . | . . . . . Uniques/NPCs Destroyed . | . . . . . Combat | -11 -10 -10 -10 -9 -------- Run | Yrd Mat Min Exi Min Hostile Shots Fired 103 | . 47 41 . 15 Missed 23 | . 12 11 . . Damage Taken 1307 | . 377 367 . 563 Core 289 | . 75 52 . 162 Absorbed by Shields . | . . . . . Core Remaining (%) 100 | 100 . . . . Volleys Fired 82 | 1 46 25 7 3 Largest 2 | 2 2 2 2 1 Hottest 165 | 40 165 88 88 65 Shots Fired 140 | 2 92 32 11 3 Gun 135 | 2 87 32 11 3 Cannon . | . . . . . Launcher . | . . . . . Special 5 | . 5 . . . Kinetic 98 | 2 66 22 7 1 Thermal 42 | . 26 10 4 2 Explosive . | . . . . . Electromagnetic . | . . . . . Robot Hit Streak 10 | 1 9 10 7 2 Robot Miss Streak 8 | . 8 4 1 1 Penetration Max . | . . . . . Secondary Targets 2 | . 1 1 . . Max Gunslinging Chain 1 | . 1 1 . . Shots Hit Robots 92 | 1 49 19 21 2 Core Hits 39 | 1 22 9 6 1 Critical Kills . | . . . . . Critical Parts Destroyed 1 | . . 1 . . Critical Strikes 2 | . . 2 . . Burn 1 | . . 1 . . Destroy 1 | . . 1 . . Melee Attacks 16 | . . . 16 . Impact . | . . . . . Slashing . | . . . . . Piercing 9 | . . . 9 . Sneak Attacks . | . . . . . Combat Hostiles . | . . . . . Follow-up Attacks . | . . . . . Damage Inflicted 1447 | 13 635 316 450 33 Guns 1146 | 13 617 316 167 33 Cannons . | . . . . . Explosions . | . . . . . Melee 283 | . . . 283 . Ramming 18 | . 18 . . . Kinetic 757 | 13 407 226 111 . Thermal 389 | . 210 90 56 33 Explosive . | . . . . . Electromagnetic . | . . . . . Impact . | . . . . . Slashing . | . . . . . Piercing 283 | . . . 283 . Highest Corruption . | . . . . . Average Corruption . | . . . . . Corruption Purged . | . . . . . Corruption Blocked . | . . . . . Overload Shots . | . . . . . Overflow Damage . | . . . . . Projectiles . | . . . . . Explosions . | . . . . . Melee . | . . . . . Knockbacks . | . . . . . Impact . | . . . . . Kinetic . | . . . . . Secondary . | . . . . . Self-Inflicted Damage . | . . . . . Shots . | . . . . . Rammed . | . . . . . Targets Rammed 4 | . 4 . . . Kicked 4 | . 4 . . . Crushed . | . . . . . Highest Temperature 238 | . 238 154 124 77 Average Temperature 74 | . 79 77 52 36 Received Heat Transfer 360 | . 165 177 . 18 Siege Activations . | . . . . . Robots Corrupted . | . . . . . Combat Hostiles . | . . . . . Parts Fried . | . . . . . Impact Corruptions . | . . . . . Robots Melted . | . . . . . Combat Hostiles . | . . . . . Parts Melted 1 | . . . . 1 Heat Transferred 962 | . 481 296 111 74 Parts Sabotaged . | . . . . . Parts Stolen . | . . . . . Parts Stripped . | . . . . . Power Chain Reactions . | . . . . . Alert | -11 -10 -10 -10 -9 ------- Run | Yrd Mat Min Exi Min Peak Influence 245 | 5 245 179 . 30 Initial 13 | . 3 13 . . Average 72 | . 85 60 . 22 Maximum Alert Level 1 | . 1 . . . Low Security (%) 96 | 100 94 100 . 100 Level 1 3 | . 5 . . . Level 2 . | . . . . . Level 3 . | . . . . . Level 4 . | . . . . . Level 5 . | . . . . . High Security . | . . . . . Max Security . | . . . . . Squads Dispatched 5 | . 4 1 . . Investigation 2 | . 2 . . . Extermination . | . . . . . Reinforcement 2 | . 2 . . . Assault 1 | . . 1 . . Garrison . | . . . . . Intercept . | . . . . . Searches Triggered . | . . . . . Construction Impeded . | . . . . . Haulers Reinforced . | . . . . . Active Scanning Responses . | . . . . . Cargo Convoy Interrupts . | . . . . . Stealth | -11 -10 -10 -10 -9 --------- Run | Yrd Mat Min Exi Min Distress Signals 2 | . 2 . . . Communications Jammed . | . . . . . Distress Signals . | . . . . . Times Spotted 45 | . 31 10 . 4 Peak Tracking Total 5 | . 5 4 . 2 Tactical Retreats 4 | . 4 . . . Traps | -11 -10 -10 -10 -9 ------- Run | Yrd Mat Min Exi Min Traps Triggered . | . . . . . Indirectly . | . . . . . Trap Hack Attempts . | . . . . . Triggered . | . . . . . Disarmed . | . . . . . Reprogrammed . | . . . . . Reused . | . . . . . Traps Extracted . | . . . . . Installed . | . . . . . Triggered . | . . . . . Machines | -11 -10 -10 -10 -9 ---------- Run | Yrd Mat Min Exi Min Machines Disabled . | . . . . . Max in Single Turn . | . . . . . Machines Repaired . | . . . . . Machines Dismantled . | . . . . . Machines Sabotaged . | . . . . . Overloaded Fab Kills . | . . . . . Hacking | -11 -10 -10 -10 -9 --------- Run | Yrd Mat Min Exi Min Machines Accessed 10 | . 7 1 2 . Terminals 6 | . 6 . . . Fabricators . | . . . . . Repair Stations . | . . . . . Recycling Units 1 | . 1 . . . Scanalyzers . | . . . . . Garrison Access . | . . . . . Total Hacks 23 | . 19 1 3 . Successful 11 | . 7 1 3 . Failed 12 | . 12 . . . Catastrophic 3 | . 3 . . . Database Lockouts . | . . . . . Manual 15 | . 12 1 2 . Terminals 16 | . 16 . . . Fabricators . | . . . . . Repair Stations . | . . . . . Recycling Units 3 | . 3 . . . Scanalyzers . | . . . . . Garrison Access . | . . . . . Terminal Hacks 5 | . 1 1 3 . Record 2 | . . . 2 . Open Door 1 | . . 1 . . Alert Level 1 | . 1 . . . Derelict Proto ID Bank 1 | . . . 1 . Fabricator Hacks . | . . . . . Repair Station Hacks . | . . . . . Recycling Unit Hacks 2 | . 2 . . . Report Inventory 1 | . 1 . . . Retrieve Components 1 | . 1 . . . Scanalyzer . | . . . . . Garrison Access Hacks . | . . . . . Unauthorized Hacks 4 | . 4 . . . Terminals 4 | . 4 . . . Botnet 4 | . 4 . . . Fabricators . | . . . . . Repair Stations . | . . . . . Recycling Units . | . . . . . Scanalyzers . | . . . . . Garrison Access . | . . . . . Data Cores Recovered . | . . . . . Used . | . . . . . Hacking Detections 7 | . 7 . . . Full Trace Events 4 | . 4 . . . Feedback Events . | . . . . . Feedback Blocked . | . . . . . Robot Schematics Acquired . | . . . . . Robots Built . | . . . . . Authchips . | . . . . . Time . | . . . . . Total Robot Build Rating . | . . . . . Part Schematics Acquired . | . . . . . Parts Built . | . . . . . Authchips . | . . . . . Time . | . . . . . Total Part Build Rating . | . . . . . Parts Repaired . | . . . . . Time . | . . . . . Parts Recycled . | . . . . . Recycled Matter . | . . . . . Retrieved Matter . | . . . . . Retrieved Components 10 | . 10 . . . Parts Scanalyzed . | . . . . . Part Schematics Acquired . | . . . . . Parts Damaged . | . . . . . Bothacking | -11 -10 -10 -10 -9 ------------ Run | Yrd Mat Min Exi Min Used RIF Installer . | . . . . . Robots Hacked . | . . . . . Non-combat . | . . . . . Combat . | . . . . . Robot Hacks Applied . | . . . . . Relay Couplers Released . | . . . . . Fabnet Peak Effective % . | . . . . . Robots Rewired . | . . . . . Allies Hacked . | . . . . . Hacks Repelled . | . . . . . Allies | -11 -10 -10 -10 -9 -------- Run | Yrd Mat Min Exi Min Total Allies 3 | . . 3 . . Largest Group 3 | . . 3 3 1 Highest-Rated Group 72 | . . 72 72 31 Highest-Rated Ally 31 | . . 31 31 31 Total Orders . | . . . . . Ally Attacks 22 | . . 13 6 3 Total Damage 333 | . . 208 63 62 Kills 8 | . . 5 2 1 Allies Corrupted . | . . . . . Allies Melted . | . . . . . Intel | -11 -10 -10 -10 -9 ------- Run | Yrd Mat Min Exi Min Robot Analysis Total . | . . . . . Derelict Logs Recovered 2 | . . 2 . . Drone Launches . | . . . . . Drone Recoveries . | . . . . . Exploration | -11 -10 -10 -10 -9 ------------- Run | Yrd Mat Min Exi Min Turns Passed 4514 | 89 1722 1057 1587 59 Spaces Moved 2344 | 62 970 510 777 25 Core 7 | 7 . . . . Treads . | . . . . . Legs 2337 | 55 970 510 777 25 Wheels . | . . . . . Hover . | . . . . . Flight . | . . . . . Fastest Speed 50 | 50 120 190 190 190 Average Speed 171 | 115 150 190 190 195 Slowest Speed 260 | 120 190 190 190 260 Overloaded Moves . | . . . . . Propulsion Burnouts . | . . . . . Robots Hopped . | . . . . . Cave-ins Triggered . | . . . . . Exploration Rate (%) 57 | 3 93 92 93 7 Regions Visited 4 Branch Regions 3 Pre-discovered Areas 2 | . . 1 1 . Known Exits Taken 3 | . 1 1 1 . Unknown Exits Taken 1 | 1 . . . . Scrap Searched 1 | . . 1 . . Spaces Dug 5 | . 5 . . . Terrain Destroyed 5 | . 5 . . . Melee . | . . . . . Projectile 5 | . 5 . . . AOE . | . . . . . Terrain Rammed . | . . . . . Walls Destroyed . | . . . . . Machines Disabled . | . . . . . Actions | -11 -10 -10 -10 -9 --------- Run | Yrd Mat Min Exi Min Total 2688 | 74 1140 572 870 32 Wait 145 | 1 76 22 46 . Move 2340 | 61 969 509 776 25 Hop . | . . . . . Pick Up 33 | 4 18 6 4 1 Fast Attach 9 | 7 1 1 . . Attach 4 | . . 2 . 2 Detach . | . . . . . Swap 20 | . 11 2 6 1 Drop 26 | . 15 5 6 . Fire 82 | 1 46 25 7 3 Melee 16 | . . . 16 . Ram . | . . . . . Kick 4 | . 4 . . . Crush . | . . . . . Escape Stasis . | . . . . . Rewire 9 | . . . 9 . Trap . | . . . . . Miscellaneous . | . . . . . Route ------- -11/Scrapyard -10/Materials (discovered 6 exits: *Mat x3 / *Min x2 / [Sub]) -10/Mines (discovered 3 exits: *Mat x2 / *Exi) -10/Exiles (discovered 2 exits: *Min x2) -9/Mines History --------- Turn | Location | Event 14 | -11/Scrapyard | Discovered new exit (range 15) 90 | -11/Scrapyard | Entered Materials 90 | -10/Materials | Discovered new exit (range 14) 303 | -10/Materials | Build established: Mutant 447 | -10/Materials | Destroyed 8 combat bots 503 | -10/Materials | Discovered new exit (range 11) 697 | -10/Materials | Discovered new exit (range 16) 933 | -10/Materials | Discovered new exit (range 14) 1039 | -10/Materials | Discovered new exit (range 3) 1039 | -10/Materials | Discovered new exit (range 10) 1802 | -10/Materials | Identified exit to Mines 1812 | -10/Materials | Entered Mines 1830 | -10/Mines | Learned location of Storage (-9) 1862 | -10/Mines | Learned 8 Materials zone layouts 1962 | -10/Mines | Lost 3 parts (1p2w) 2175 | -10/Mines | Met a Derelict testing a Signal Generator 2389 | -10/Mines | Discovered new exit (range 8) 2394 | -10/Mines | Received a Rocket Launcher from a helpful Derelict 2414 | -10/Mines | Identified exit to Materials 2527 | -10/Mines | Core integrity fell below 50% 2565 | -10/Mines | Found the Drone Emporium 2585 | -10/Mines | Found Prototype Device 2671 | -10/Mines | Discovered exit to Materials (range 8) 2836 | -10/Mines | Deemed a non-threat by the Exiles lab entrance 2838 | -10/Mines | Discovered new exit (range 5) 2846 | -10/Mines | Identified exit to Exiles 2869 | -10/Mines | Entered Exiles 2869 | -10/Exiles | Found Exiles lab destroyed 2869 | -10/Exiles | Accompanied by 3 allies 2899 | -10/Exiles | Led the pair of lost Derelicts to a safe place 2929 | -10/Exiles | Discovered new exit (range 15) 2959 | -10/Exiles | Identified exit to Mines 3358 | -10/Exiles | Opened EX-Vault 3377 | -10/Exiles | Found Trap Reconfigurator 4226 | -10/Exiles | Learned location of Zion (-6) 4395 | -10/Exiles | Discovered exit to Mines (range 14) 4456 | -10/Exiles | Entered Mines 4456 | -9/Mines | Accompanied by 1 ally 4457 | -9/Mines | Assembled infested the area 4513 | -9/Mines | Core integrity fell below 20% 4515 | -9/Mines | Destroyed by D-53 Grenadier with Mini Grenade Launcher Last Messages --------------- LOCATION=MINES GOAL=ESCAPE 04457_ ALERT: Infestation in the mines, dispatching Demolisher response squad. 04457_ G-34 Mercenary destroyed. 04460_ G-47 Trooper suffers critical hit (Burn). 04461_ WY-N6S(g) destroyed. 04463_ Autogun destroyed. 04467_ Lgt. Nuclear Core melted. 04467_ G-47 Trooper destroyed. 04478_ Acquired 19 matter. 04499_ Acquired Ion Engine. 04503_ C-30 ARC bursts open, deploying its payload. 04503_ D-53 Grenadier unfolds itself. 04506_ The unstable cave ceiling collapses. 04506_ Aluminum Leg destroyed. 04511_ The unstable cave ceiling collapses. 04513_ Aluminum Leg destroyed. 04515_ Particle Gun destroyed. Map ----- +----------------------------------------------------+ | ?????????????????????????????????????????????????? | | ?????????????????????????????????????????????????? | | ?????????????????????????????????????????????????? | | ?????????????????????????????????????????????????? | | ?????????????????????????????????????????????????? | | ?????????????????????????????????????????????????? | | ?????????????????????????????????????????????????? | | ?????????????????????????????????????????????????? | | ?????????????????????????????????????????????????? | | ?????????????????????????????????????????????????? | | ?????????????????????????????????????????????????? | | ?????????????????????????????????????????????????? | | ?????????????????????????????????????????????????? | | ?????????????????????????????????????????????????? | | ?????????????????????????????????????????????????? | | ?????????????????????????????????????????????????? | | ?????????????????????????????????????????????????? | | ?????????????????????????????????????????????????? | | ?????????????????????????????????????????????????? | | ??????????????????????##########?????????????????? | | ?????????????????????## # ##????????????????? | | ????????????????#????# #????????????????? | | ????????????????# ### #????????????????? | | ????????????????# %d # #????????????????? | | ????????????????# d ##???????????????? | | ????????????????###### @ #???????????????? | | ????????????????????# #???????????????? | | ????????????????????# ##???????????????? | | ????????????????????## ##????????????????? | | ?????????????????????## ##???????????????? | | ??????????????????????# #???????????????? | | ?????????????????????## #???????????????? | | ?????????????????????# ##???????????????? | | ???????????????????# ##????????????????? | | ??????????????????# ####?????????????????? | | ??????????????????# ###????????????????????? | | ??????????????????## #???????????????????????? | | ???????????????????# #????????????????????????? | | ???????????????????## #?????????????????????????? | | ????????????????????###??????????????????????????? | | ?????????????????????????????????????????????????? | | ?????????????????????????????????????????????????? | | ?????????????????????????????????????????????????? | | ?????????????????????????????????????????????????? | | ?????????????????????????????????????????????????? | | ?????????????????????????????????????????????????? | | ?????????????????????????????????????????????????? | | ?????????????????????????????????????????????????? | | ?????????????????????????????????????????????????? | | ?????????????????????????????????????????????????? | +----------------------------------------------------+ Best States ------------- Heat Dissipation 25 Energy Generation 15 Energy Capacity 250 Matter Stores 300 Matter Capacity 300 Sight Range 16 Terrain Scan Density 10 Evasion (%) 55 Item Schematics ----------------- None Robot Schematics ------------------ None Fabricated ------------ Nothing Alien Tech Used ----------------- None Achievements -------------- None Challenges ------------ None Game ------ Seed PortableSpacefoldWheel Manual? 0 Play Time 00:31:36 Cumulative 55.7 hours Start 2024.05.08 @ 17:11:08 End 2024.05.08 @ 19:41:38 Sessions 3 Manual Loads 0 Difficulty Rogue Special Mode None Game No. 49 Rogue 49 Adventurer 0 Explorer 0 Win Type - Total 0 Types 0/0/0/0/0/0/0/0/0 Lore% 21 Gallery% 34 Achievement% 24 Wizard Run 0 Options --------- Layout 2 ASCII 0 Keyboard 1 Movement Arrows Keybinds 0 Fullscreen 2 Font 24/Smallcaps Map View 50x44 Zoom Use 0% Tactical HUD 1 Map Filters NONE Filters NONE Steam 1 RUN: c4c8ea33-9e44-43c9-b2ee-3aaf3ac509e1